bitfinex/quotes_BTCUSD_20241103
["timestamp","ask_amount","ask_price","bid_price","bid_amount"]
[1730660338026,0.0098059,68058.0,68057.0,0.40473204]
[1730660338283,0.0098059,68058.0,68057.0,0.41873204]
[1730660338545,0.0098059,68058.0,68057.0,0.42673204]
[1730660339474,0.0098059,68058.0,68057.0,0.41873204]
[1730660339701,0.0098059,68058.0,68057.0,0.43273204]
[1730660339926,0.0098059,68058.0,68057.0,0.43773204]
[1730660340405,0.0098059,68058.0,68057.0,0.44273204]
[1730660341137,9e-07,68059.0,68058.0,0.395333]
[1730660341392,0.001666,68072.0,68071.0,0.168905]
[1730660341629,0.001666,68072.0,68071.0,0.27184254]
[1730660342624,0.001666,68072.0,68071.0,0.41470204]
[1730660343106,0.001666,68072.0,68071.0,0.42870204]
[1730660343773,0.001666,68072.0,68071.0,0.24579704]
[1730660343988,0.001666,68072.0,68071.0,0.39563923]
[1730660344231,0.001664,68078.0,68073.0,0.002]
[1730660344454,0.001664,68078.0,68077.0,0.27999418]
[1730660344702,0.001664,68078.0,68077.0,0.42579122]
[1730660345219,0.001664,68086.0,68085.0,0.48287718]
[1730660345472,0.001664,68086.0,68085.0,0.6087764]
[1730660345719,0.001664,68086.0,68085.0,0.57367422]
[1730660346839,0.001664,68086.0,68085.0,0.65428578]
[1730660347555,0.001664,68086.0,68085.0,0.53138578]
[1730660347782,0.002664,68086.0,68085.0,0.53238578]
[1730660348243,0.002664,68086.0,68085.0,0.54638578]
[1730660348466,0.001664,68086.0,68085.0,0.25248656]
[1730660348690,0.002664,68086.0,68085.0,0.25348656]
[1730660348913,0.002664,68086.0,68085.0,0.26748656]
[1730660349365,0.001664,68086.0,68085.0,0.26648656]
[1730660349584,0.001664,68086.0,68085.0,0.25248656]
[1730660350511,0.002664,68086.0,68085.0,0.4112836]
[1730660351655,0.002664,68086.0,68085.0,0.4252836]
[1730660352824,0.002664,68086.0,68085.0,0.4547536]
[1730660353042,0.002664,68086.0,68085.0,0.55838578]
[1730660356444,0.002664,68086.0,68085.0,0.4252836]
[1730660356691,0.001664,68086.0,68085.0,0.4122836]
[1730660356909,0.001664,68086.0,68085.0,0.4252836]
[1730660357134,0.002664,68086.0,68085.0,0.4252836]
[1730660357823,0.002664,68086.0,68085.0,0.4112836]
[1730660358331,0.002664,68086.0,68085.0,0.4252836]
[1730660361332,0.002664,68086.0,68085.0,0.41967204]
[1730660362771,0.001664,68086.0,68085.0,0.40667204]
[1730660362998,0.001664,68086.0,68085.0,0.41867204]
[1730660363239,0.002664,68086.0,68085.0,0.41867204]
[1730660363690,0.077364,68086.0,68085.0,0.014]
[1730660363912,0.077364,68086.0,68085.0,0.026]
[1730660363913,0.0919704,68086.0,68085.0,0.026]
[1730660364172,0.0969704,68086.0,68085.0,0.012]
[1730660364404,0.083364,68086.0,68085.0,0.022]
[1730660364875,0.078364,68086.0,68085.0,0.168875]
[1730660365100,0.078364,68086.0,68085.0,0.158875]
[1730660365546,0.077364,68086.0,68085.0,0.149875]
[1730660365779,0.078364,68086.0,68085.0,0.156875]
[1730660367161,0.078364,68086.0,68085.0,0.01]
[1730660367618,0.225237,68086.0,68085.0,0.01]
[1730660368079,0.078364,68086.0,68085.0,0.01]
[1730660368954,0.26209746,68086.0,68085.0,0.01]
[1730660369175,0.230237,68086.0,68085.0,0.01]
[1730660370077,0.45094695,68086.0,68085.0,0.01]
[1730660370301,0.235237,68086.0,68085.0,0.01]
[1730660375925,0.281037,68086.0,68085.0,0.01]
[1730660376544,0.42683404,68086.0,68085.0,0.01]
[1730660376754,0.56364576,68086.0,68085.0,0.01]
[1730660377383,0.69674794,68086.0,68085.0,0.01]
[1730660381452,0.72474794,68086.0,68085.0,0.01]
[1730660381881,0.72974794,68086.0,68085.0,0.01]
[1730660382099,0.72874794,68086.0,68085.0,0.003]
[1730660382519,0.59664576,68086.0,68085.0,0.003]
[1730660382927,0.59564576,68086.0,68085.0,0.003]
[1730660383617,0.229486,68080.0,68079.0,0.001634]
[1730660383891,0.59558542,68080.0,68079.0,0.001634]
[1730660385210,0.59558542,68080.0,68079.0,0.002634]
[1730660386531,0.59558542,68080.0,68079.0,0.001634]
[1730660386944,0.60258542,68080.0,68079.0,0.003634]
[1730660391979,0.52038522,68080.0,68079.0,0.003634]
[1730660392622,0.59378522,68080.0,68079.0,0.003634]
[1730660392857,0.59460222,68080.0,68079.0,0.003634]
[1730660400793,0.69960222,68080.0,68079.0,0.003634]
[1730660401471,0.74493362,68080.0,68079.0,0.003634]
[1730660401714,0.89075936,68080.0,68079.0,0.003634]
[1730660401958,0.89275936,68080.0,68079.0,0.003634]
[1730660402204,0.89275936,68080.0,68059.0,0.22070995]
[1730660402205,0.36733118,68060.0,68059.0,0.22070995]
[1730660402432,0.51312822,68060.0,68059.0,0.22070995]
[1730660402972,0.156933,68058.0,68047.0,0.22070995]
[1730660403202,0.30273004,68058.0,68047.0,0.22070995]
[1730660403696,0.005,68058.0,68052.0,0.0467]
[1730660403942,0.005,68061.0,68060.0,0.146929]
[1730660404904,0.005,68061.0,68059.0,0.295862]
[1730660404905,0.005,68061.0,68059.0,0.002]
[1730660405120,0.14693,68060.0,68056.0,0.146936]
[1730660405334,0.005,68061.0,68060.0,0.002]
[1730660405557,0.151927,68061.0,68060.0,0.002]
[1730660405775,0.151927,68061.0,68057.0,0.148569]
[1730660405993,0.151928,68061.0,68057.0,0.001634]
[1730660406215,0.005,68058.0,68057.0,0.001634]
[1730660407381,0.005,68059.0,68057.0,0.002634]
[1730660407608,0.005,68059.0,68058.0,0.146933]
[1730660407853,0.005,68059.0,68057.0,0.002634]
[1730660407854,0.01,68061.0,68060.0,0.146929]
[1730660409230,0.005,68063.0,68058.0,0.293866]
[1730660409497,0.005,68065.0,68058.0,0.294866]
[1730660409716,0.005,68065.0,68064.0,0.14692]
[1730660411551,0.005,68069.0,68065.0,0.293836]
[1730660411771,0.005,68069.0,68068.0,0.146911]
[1730660412041,0.22070995,68071.0,68066.0,0.293832]
[1730660412042,0.005,68070.0,68066.0,0.293832]
[1730660412261,0.005,68070.0,68069.0,0.146909]
[1730660412488,0.01,68070.0,68069.0,0.146909]
[1730660413654,0.293781,68078.0,68069.0,0.146909]
[1730660413895,0.293789,68076.0,68069.0,0.146909]
[1730660414148,0.1469,68074.0,68069.0,0.146909]
[1730660414401,0.1469,68074.0,68069.0,0.149909]
[1730660416061,0.1469,68074.0,68069.0,0.146909]
[1730660416538,0.14579704,68077.0,68067.0,0.293828]
[1730660416539,0.146895,68076.0,68067.0,0.293828]
[1730660416776,0.146884,68081.0,68069.0,0.002]
[1730660417001,0.002,68074.0,68073.0,0.146901]
[1730660417919,0.001664,68086.0,68079.0,0.146888]
[1730660418147,0.22070995,68083.0,68079.0,0.146888]
[1730660418376,0.001664,68086.0,68079.0,0.146888]
[1730660419048,0.001664,68086.0,68079.0,0.36759795]
[1730660419283,0.001664,68086.0,68079.0,0.42068504]
[1730660419505,0.001664,68086.0,68079.0,0.42568504]
[1730660419786,0.001664,68086.0,68079.0,0.42768504]
[1730660420011,0.001664,68086.0,68079.0,0.42568504]
[1730660420472,0.002817,68080.0,68079.0,0.53968504]
[1730660420923,0.000817,68080.0,68079.0,0.52568504]
[1730660421173,0.000817,68080.0,68079.0,0.53968504]
[1730660421174,0.001817,68080.0,68079.0,0.53968504]
[1730660421384,0.002817,68080.0,68079.0,0.54168504]
[1730660422064,0.002817,68080.0,68079.0,0.54754516]
[1730660423417,0.002817,68080.0,68079.0,0.55254516]
[1730660425291,0.002817,68080.0,68079.0,0.57554516]
[1730660425546,0.001664,68086.0,68085.0,0.251875]
[1730660425766,0.001664,68086.0,68085.0,0.662511]
[1730660426001,0.001664,68086.0,68085.0,0.65957422]
[1730660426712,0.002664,68086.0,68085.0,0.67357422]
[1730660427420,0.003664,68086.0,68085.0,0.67557422]
[1730660428902,0.003664,68086.0,68085.0,0.69857422]
[1730660430727,0.003664,68086.0,68085.0,0.70057422]
[1730660430943,1e-06,68086.0,68085.0,0.69657422]
[1730660431184,0.001001,68086.0,68085.0,0.71057422]
[1730660431413,0.001001,68086.0,68085.0,0.71257422]
[1730660432084,0.001,68086.0,68085.0,0.69857422]
[1730660432312,0.22070995,68095.0,68091.0,0.01]
[1730660432538,0.22070995,68095.0,68091.0,0.65956122]
[1730660432759,0.001,68099.0,68091.0,0.65956122]
[1730660433651,0.001,68099.0,68091.0,0.67056122]
[1730660434094,0.001,68099.0,68091.0,0.68456122]
[1730660436353,0.001,68099.0,68091.0,0.70756122]
[1730660436804,0.001,68099.0,68091.0,0.71342063]
[1730660438907,0.001,68099.0,68091.0,0.68842063]
[1730660439134,0.001,68099.0,68091.0,0.70242063]
[1730660439352,0.0099879,68092.0,68091.0,0.70242063]
[1730660439807,0.0089879,68092.0,68091.0,0.70242063]
[1730660440034,0.0099879,68092.0,68091.0,0.76077104]
[1730660440277,0.0116239,68092.0,68091.0,0.71642063]
[1730660441219,0.30440995,68119.0,68110.0,0.67272536]
[1730660441220,0.19134695,68111.0,68110.0,0.67272536]
[1730660441479,0.13261895,68111.0,68110.0,0.68542022]
[1730660441711,0.22070995,68118.0,68117.0,0.156806]
[1730660441944,0.22070995,68118.0,68117.0,0.40260304]
[1730660442167,0.001,68119.0,68118.0,0.256804]
[1730660442408,0.001,68119.0,68118.0,0.40260104]
[1730660442655,0.001,68119.0,68118.0,0.62331099]
[1730660442890,0.001,68119.0,68118.0,0.57160687]
[1730660443827,0.001,68119.0,68118.0,0.58560687]
[1730660444051,0.001,68119.0,68118.0,0.53516916]
[1730660445213,0.002,68119.0,68118.0,0.54916916]
[1730660446121,0.002,68119.0,68118.0,0.56316916]
[1730660446355,0.002,68119.0,68118.0,0.54916916]
[1730660446848,0.002,68119.0,68118.0,0.56316916]
[1730660453121,0.002818,68119.0,68118.0,0.56316916]
[1730660456452,0.002818,68119.0,68118.0,0.43646916]
[1730660459335,1e-06,68119.0,68118.0,0.63306818]
[1730660459462,0.22070995,68140.0,68131.0,0.246776]
[1730660459703,0.22070995,68140.0,68131.0,0.68677522]
[1730660460345,0.001664,68141.0,68131.0,0.68677522]
[1730660461052,0.001664,68141.0,68131.0,0.70077522]
[1730660461253,0.001664,68141.0,68131.0,0.68677522]
[1730660461671,0.001664,68141.0,68131.0,0.70077522]
[1730660462374,0.001664,68141.0,68138.0,0.41286218]
[1730660462624,0.001664,68141.0,68138.0,0.53565922]
[1730660463261,0.001664,68141.0,68138.0,0.55865922]
[1730660463955,0.001664,68141.0,68138.0,0.68675922]
[1730660464183,1e-06,68141.0,68140.0,0.01]
[1730660464389,1e-06,68141.0,68140.0,0.42848729]
[1730660464602,1e-06,68141.0,68140.0,0.42555304]
[1730660465906,1e-06,68141.0,68140.0,0.43955304]
[1730660466404,1e-06,68141.0,68140.0,0.41655304]
[1730660466621,1e-06,68141.0,68140.0,0.42555304]
[1730660466839,0.079101,68141.0,68140.0,0.174756]
[1730660468000,0.079101,68141.0,68140.0,0.146756]
[1730660468226,0.079101,68141.0,68140.0,0.160756]
[1730660468461,0.079101,68141.0,68140.0,0.174756]
[1730660468899,0.079101,68141.0,68140.0,0.160756]
[1730660469150,0.079101,68141.0,68140.0,0.164756]
[1730660469362,0.079101,68141.0,68140.0,0.150756]
[1730660469806,0.079101,68141.0,68140.0,0.157756]
[1730660472473,1e-06,68141.0,68140.0,0.40355304]
[1730660472723,1e-06,68141.0,68140.0,0.54665522]
[1730660472968,1e-06,68141.0,68140.0,0.54865522]
[1730660473442,1e-06,68141.0,68140.0,0.56965522]
[1730660474162,1e-06,68141.0,68140.0,0.73656244]
[1730660474434,0.001662,68149.0,68148.0,0.41284118]
[1730660474663,0.22070995,68154.0,68153.0,0.38983018]
[1730660474862,0.22070995,68154.0,68153.0,0.53562722]
[1730660475106,0.0089879,68160.0,68158.0,0.251717]
[1730660475334,0.0089879,68160.0,68158.0,0.39751404]
[1730660476031,0.0089879,68160.0,68158.0,0.39251404]
[1730660476482,0.0089879,68160.0,68158.0,0.61822399]
[1730660476695,0.0089879,68160.0,68158.0,0.39751404]
[1730660476935,0.0089879,68160.0,68158.0,0.41151404]
[1730660477165,0.0089879,68160.0,68158.0,0.39751404]
[1730660477625,0.0089879,68160.0,68158.0,0.41151404]
[1730660478550,0.0089879,68160.0,68158.0,0.42551404]
[1730660478980,0.0413499,68170.0,68169.0,0.146694]
[1730660479668,0.22070995,68180.0,68175.0,0.146681]
[1730660480100,0.22070995,68184.0,68175.0,0.146681]
[1730660480566,0.22070995,68186.0,68175.0,0.146681]
[1730660480775,0.36736695,68186.0,68175.0,0.146681]
[1730660480991,0.36736695,68186.0,68175.0,0.150681]
[1730660481657,0.36736695,68186.0,68175.0,0.151681]
[1730660482101,0.1234,68176.0,68175.0,0.005]
[1730660483199,0.1234,68176.0,68175.0,0.151681]
[1730660483422,0.1234,68176.0,68175.0,0.150681]
[1730660483635,0.1234,68176.0,68175.0,0.146681]
[1730660483851,0.1244,68176.0,68174.0,0.146682]
[1730660484082,0.1244,68176.0,68172.0,0.293373]
[1730660484083,0.207719,68176.0,68175.0,0.001]
[1730660484317,0.206719,68176.0,68175.0,0.001]
[1730660484541,0.32738118,68176.0,68175.0,0.001]
[1730660484751,0.196196,68168.0,68167.0,0.22070995]
[1730660484966,0.146704,68165.0,68160.0,0.22070995]
[1730660485180,0.146707,68163.0,68160.0,0.22070995]
[1730660485626,0.1253,68168.0,68161.0,0.22070995]
[1730660485849,0.418694,68168.0,68153.0,0.22070995]
[1730660486076,0.146701,68166.0,68161.0,0.146711]
[1730660486325,0.0758,68164.0,68154.0,0.22070995]
[1730660486522,0.43921204,68163.0,68154.0,0.22070995]
[1730660486753,0.146718,68158.0,68154.0,0.22070995]
[1730660487048,0.0585933,68158.0,68148.0,0.146738]
[1730660487261,0.0585933,68158.0,68146.0,0.293487]
[1730660487262,0.14579704,68158.0,68146.0,0.293487]
[1730660487476,0.14579704,68158.0,68139.0,0.293515]
[1730660487477,0.13310218,68155.0,68143.0,0.293497]
[1730660487688,0.13310218,68155.0,68146.0,0.293487]
[1730660487899,0.27982718,68155.0,68154.0,0.001]
[1730660488342,0.146725,68155.0,68150.0,0.146734]
[1730660488773,0.148725,68155.0,68150.0,0.146734]
[1730660489203,0.002,68155.0,68150.0,0.146734]
[1730660489417,0.148725,68155.0,68150.0,0.146734]
[1730660489873,0.146725,68155.0,68150.0,0.146734]
[1730660490091,0.148725,68155.0,68150.0,0.146734]
[1730660490520,0.147725,68155.0,68150.0,0.146734]
[1730660490768,0.148725,68155.0,68150.0,0.146734]
[1730660490973,0.149725,68155.0,68150.0,0.146734]
[1730660493869,0.149725,68155.0,68149.0,0.001634]
[1730660493870,0.146727,68154.0,68149.0,0.14837]
[1730660494328,0.293457,68153.0,68149.0,0.001634]
[1730660494530,0.27983718,68150.0,68149.0,0.001634]
[1730660495873,0.0808,68150.0,68149.0,0.001634]
[1730660496957,0.0808,68150.0,68149.0,0.150371]
[1730660497217,0.0818,68150.0,68149.0,0.003634]
[1730660497466,0.228535,68150.0,68149.0,0.003634]
[1730660497705,0.227535,68150.0,68149.0,0.003634]
[1730660497923,0.64808964,68150.0,68149.0,0.001634]
[1730660498142,0.64908964,68150.0,68149.0,0.001634]
[1730660498990,0.55423422,68150.0,68149.0,0.001634]
[1730660499449,0.55323422,68150.0,68149.0,0.001634]
[1730660499648,0.55523422,68150.0,68149.0,0.001634]
[1730660499873,0.58823422,68150.0,68149.0,0.001634]
[1730660500111,0.41246018,68139.0,68138.0,0.22070995]
[1730660500325,0.55825722,68139.0,68138.0,0.22070995]
[1730660500786,0.146771,68133.0,68132.0,0.001634]
[1730660501277,0.29353,68137.0,68132.0,0.001634]
[1730660501278,0.146769,68135.0,68132.0,0.001634]
[1730660501504,0.146771,68133.0,68132.0,0.001634]
[1730660501949,0.14579704,68134.0,68132.0,0.001634]
[1730660502157,0.29256704,68134.0,68132.0,0.001634]
[1730660503070,0.29256704,68134.0,68132.0,0.002634]
[1730660503487,0.001,68133.0,68132.0,0.001634]
[1730660503695,0.001,68133.0,68132.0,0.148407]
[1730660504161,0.22756,68139.0,68134.0,0.146768]
[1730660504412,0.29255704,68139.0,68134.0,0.146768]
[1730660504641,0.1276,68146.0,68141.0,0.146753]
[1730660504892,0.0808,68146.0,68142.0,0.146751]
[1730660505090,0.0808,68146.0,68142.0,0.293504]
[1730660505305,0.0808,68152.0,68142.0,0.293504]
[1730660505525,0.0808,68152.0,68143.0,0.146748]
[1730660505526,0.43926204,68151.0,68143.0,0.146748]
[1730660505744,0.43926204,68151.0,68140.0,0.293512]
[1730660505745,0.146738,68149.0,68141.0,0.293509]
[1730660505980,0.14579704,68149.0,68145.0,0.146745]
[1730660506224,0.14579704,68149.0,68141.0,0.293509]
[1730660506434,0.14579704,68149.0,68135.0,0.293532]
[1730660506435,0.0808,68152.0,68132.0,0.002634]
[1730660506662,0.0808,68152.0,68145.0,0.146745]
[1730660506663,0.146735,68150.0,68145.0,0.146745]
[1730660506873,0.29253204,68150.0,68145.0,0.146745]
[1730660507082,0.002,68149.0,68145.0,0.146745]
[1730660507335,0.002,68149.0,68143.0,0.293499]
[1730660507336,0.001,68149.0,68147.0,0.146741]
[1730660507559,0.14579704,68150.0,68147.0,0.146741]
[1730660507764,0.14579704,68150.0,68143.0,0.293499]
[1730660507987,0.29253204,68150.0,68143.0,0.293499]
[1730660508204,0.29253204,68150.0,68145.0,0.146745]
[1730660508426,0.146737,68149.0,68144.0,0.146747]
[1730660508654,0.11451592,68149.0,68139.0,0.22070995]
[1730660508907,0.11451592,68149.0,68145.0,0.001]
[1730660508908,0.13310218,68148.0,68145.0,0.001]
[1730660509109,0.146744,68146.0,68145.0,0.001]
[1730660509593,0.13310218,68148.0,68139.0,0.22070995]
[1730660509811,0.13310218,68148.0,68141.0,0.146753]
[1730660509812,0.146742,68147.0,68141.0,0.146753]
[1730660510454,0.001,68146.0,68141.0,0.146754]
[1730660510676,0.002,68146.0,68139.0,0.36746595]
[1730660510888,0.148744,68146.0,68140.0,0.146756]
[1730660511102,0.147744,68146.0,68141.0,0.146753]
[1730660511782,0.001,68146.0,68142.0,0.146751]
[1730660511998,0.001,68147.0,68142.0,0.146751]
[1730660512218,0.001,68147.0,68140.0,0.293513]
[1730660512401,0.146743,68146.0,68141.0,0.146754]
[1730660512690,0.14579704,68145.0,68138.0,0.14676]
[1730660512903,0.146755,68141.0,68133.0,0.293543]
[1730660513408,0.2935,68143.0,68135.0,0.146766]
[1730660513598,0.146757,68140.0,68135.0,0.146766]
[1730660513835,0.146754,68141.0,68134.0,0.440308]
[1730660514057,0.09803887,68141.0,68135.0,0.293534]
[1730660514328,0.001,68145.0,68144.0,0.146748]
[1730660515202,0.227531,68152.0,68146.0,0.146743]
[1730660515425,0.29253104,68151.0,68146.0,0.146743]
[1730660515670,0.146735,68150.0,68144.0,0.146746]
[1730660515885,0.000817,68149.0,68144.0,0.146746]
[1730660516121,0.000817,68149.0,68143.0,0.293499]
[1730660516343,0.001,68145.0,68144.0,0.36745795]
[1730660516620,0.001,68145.0,68144.0,0.146748]
[1730660516837,0.000817,68149.0,68148.0,0.146739]
[1730660518228,0.000817,68149.0,68148.0,0.63494599]
[1730660518454,0.000817,68149.0,68148.0,0.52423604]
[1730660518894,0.000817,68149.0,68148.0,0.52992244]
[1730660519143,0.000817,68149.0,68148.0,0.51992244]
[1730660519594,0.000817,68149.0,68148.0,0.75463239]
[1730660519810,0.000817,68149.0,68148.0,0.53992244]
[1730660520036,0.000817,68149.0,68148.0,0.52592244]
[1730660520275,0.000817,68149.0,68148.0,0.53992244]
[1730660520521,0.000817,68149.0,68148.0,0.51423604]
[1730660520778,0.000817,68149.0,68148.0,0.146739]
[1730660520992,0.000817,68149.0,68148.0,0.160739]
[1730660521446,0.000817,68149.0,68148.0,0.174739]
[1730660522586,0.000817,68149.0,68148.0,0.42847046]
[1730660522809,0.000817,68149.0,68148.0,0.53323604]
[1730660523066,0.000817,68149.0,68148.0,0.5764084]
[1730660523292,0.000817,68168.0,68167.0,0.146698]
[1730660526153,0.000817,68168.0,68167.0,0.149698]
[1730660526444,0.000817,68168.0,68167.0,0.146698]
[1730660526671,0.000817,68168.0,68152.0,0.1]
[1730660526882,0.000817,68168.0,68167.0,0.007]
[1730660527542,0.000817,68168.0,68167.0,0.153698]
[1730660527769,0.000817,68168.0,68167.0,0.146698]
[1730660528008,0.000817,68168.0,68161.0,0.293422]
[1730660528293,0.000817,68168.0,68158.0,0.293435]
[1730660528968,0.000817,68168.0,68166.0,0.1467]
[1730660529210,0.000817,68168.0,68167.0,0.003]
[1730660529436,0.000817,68168.0,68165.0,0.146701]
[1730660529661,0.14661404,68168.0,68158.0,0.003]
[1730660529901,0.146701,68166.0,68161.0,0.146711]
[1730660530104,0.228599,68167.0,68161.0,0.146711]
[1730660530329,0.228599,68167.0,68166.0,0.003]
[1730660530547,0.228599,68167.0,68161.0,0.146711]
[1730660531502,0.228599,68167.0,68159.0,0.146715]
[1730660531503,0.146702,68165.0,68159.0,0.146715]
[1730660531741,0.0819,68167.0,68166.0,0.001]
[1730660531742,0.228598,68167.0,68166.0,0.001]
[1730660531971,0.0819,68167.0,68166.0,0.001]
[1730660532241,0.0819,68167.0,68161.0,0.146709]
[1730660532472,0.0819,68167.0,68166.0,0.004]
[1730660533918,0.0819,68167.0,68166.0,0.001]
[1730660534158,0.3007868,68167.0,68166.0,0.001]
[1730660534424,0.44658384,68167.0,68166.0,0.001]
[1730660534905,0.37439504,68167.0,68166.0,0.001]
[1730660535146,0.146709,68162.0,68161.0,0.004]
[1730660535363,0.146709,68162.0,68156.0,0.36743095]
[1730660536071,0.146709,68162.0,68156.0,0.146721]
[1730660536310,0.146709,68162.0,68157.0,0.146719]
[1730660536528,0.293405,68165.0,68157.0,0.146719]
[1730660536793,0.03528689,68162.0,68156.0,0.001]
[1730660537029,0.146711,68161.0,68156.0,0.001]
[1730660537494,0.43921004,68164.0,68156.0,0.001]
[1730660537730,0.146708,68163.0,68157.0,0.14672]
[1730660538190,0.14579704,68162.0,68156.0,0.001]
[1730660538461,0.14579704,68162.0,68145.0,0.293487]
[1730660538670,0.14579704,68162.0,68148.0,0.293478]
[1730660538671,0.001,68161.0,68148.0,0.293478]
[1730660538904,0.001,68161.0,68145.0,0.293487]
[1730660538905,0.146735,68151.0,68145.0,0.146745]
[1730660539426,0.0483,68156.0,68145.0,0.29349]
[1730660539739,0.0483,68156.0,68138.0,0.22070995]
[1730660539740,0.14579704,68156.0,68153.0,0.146727]
[1730660539919,0.14579704,68156.0,68146.0,0.22070995]
[1730660540193,0.14579704,68156.0,68150.0,0.29347]
[1730660540434,0.14579704,68156.0,68146.0,0.22070995]
[1730660540435,0.14579704,68156.0,68147.0,0.440224]
[1730660540650,0.14579704,68156.0,68150.0,0.146733]
[1730660540875,0.14579704,68156.0,68151.0,0.146732]
[1730660541328,0.000817,68156.0,68150.0,0.29347]
[1730660541563,0.000817,68156.0,68155.0,0.146724]
[1730660543115,0.000817,68156.0,68155.0,0.153724]
[1730660544066,0.000817,68156.0,68155.0,0.157724]
[1730660544981,0.000817,68156.0,68155.0,0.153724]
[1730660545200,0.000817,68156.0,68155.0,0.160724]
[1730660545414,0.000817,68156.0,68155.0,0.153724]
[1730660545852,0.000817,68156.0,68155.0,0.164724]
[1730660546071,0.000817,68156.0,68155.0,0.15665823]
[1730660546345,0.000817,68156.0,68155.0,0.153724]
[1730660546588,0.000817,68156.0,68155.0,0.158724]
[1730660546803,0.000817,68156.0,68155.0,0.68196519]
[1730660547067,0.000817,68156.0,68155.0,0.54682104]
[1730660547283,0.000817,68156.0,68155.0,0.55182104]
[1730660547727,0.000817,68156.0,68155.0,0.55382104]
[1730660547952,0.000817,68156.0,68155.0,0.55182104]
[1730660548200,0.000817,68156.0,68155.0,0.54382104]
[1730660548421,0.000817,68156.0,68155.0,0.55782104]
[1730660548949,0.000817,68156.0,68155.0,0.55282104]
[1730660549179,0.000817,68156.0,68155.0,0.53582104]
[1730660549395,0.000817,68156.0,68155.0,0.54982104]
[1730660549829,0.000817,68156.0,68155.0,0.53582104]
[1730660550529,0.000817,68156.0,68155.0,0.54982104]
[1730660550769,0.000817,68156.0,68155.0,0.53582104]
[1730660550998,0.000817,68156.0,68155.0,0.54982104]
[1730660551468,0.000817,68156.0,68155.0,0.45532104]
[1730660551708,0.000817,68156.0,68155.0,0.40652104]
[1730660551933,0.000817,68156.0,68155.0,0.41852104]
[1730660552171,0.000817,68156.0,68155.0,0.40452104]
[1730660552386,0.000817,68156.0,68155.0,0.41852104]
[1730660552634,0.000817,68156.0,68155.0,0.272724]
[1730660552874,0.000817,68156.0,68155.0,0.258724]
[1730660553116,0.000817,68156.0,68155.0,0.272724]
[1730660553341,0.000817,68156.0,68155.0,0.172724]
[1730660553558,0.000817,68156.0,68155.0,0.160724]
[1730660553774,0.000817,68156.0,68155.0,0.172724]
[1730660555969,0.079617,68156.0,68155.0,0.026]
[1730660556190,0.226339,68156.0,68155.0,0.026]
[1730660556879,0.079617,68156.0,68154.0,0.03]
[1730660557117,0.06884006,68156.0,68154.0,0.03]
[1730660557344,0.07084006,68156.0,68154.0,0.03]
[1730660557872,0.146724,68155.0,68154.0,0.03]
[1730660558112,0.29252104,68155.0,68154.0,0.03]
[1730660558608,0.29252104,68155.0,68149.0,0.001634]
[1730660558609,0.19439704,68155.0,68149.0,0.001634]
[1730660558840,0.003,68156.0,68155.0,0.146724]
[1730660559125,0.002,68156.0,68155.0,0.146724]
[1730660559566,0.000817,68162.0,68159.0,0.146714]
[1730660560260,0.000817,68162.0,68160.0,0.146713]
[1730660560726,0.000817,68162.0,68161.0,0.146711]
[1730660561727,0.003817,68162.0,68161.0,0.146711]
[1730660561966,0.004817,68162.0,68161.0,0.146711]
[1730660562205,0.003817,68162.0,68161.0,0.146711]
[1730660562665,0.000817,68162.0,68161.0,0.146711]
[1730660563148,0.002817,68162.0,68161.0,0.156711]
[1730660563594,0.000817,68162.0,68161.0,0.156711]
[1730660563840,0.000817,68162.0,68161.0,0.162711]
[1730660564412,0.000817,68162.0,68161.0,0.156711]
[1730660564645,0.000817,68162.0,68161.0,0.163711]
[1730660565350,0.000817,68162.0,68161.0,0.153711]
[1730660565603,0.000817,68162.0,68161.0,0.162711]
[1730660566120,0.000817,68162.0,68161.0,0.172711]
[1730660570257,0.000817,68162.0,68161.0,0.31850804]
[1730660584360,0.000817,68162.0,68161.0,0.41850804]
[1730660590661,0.000817,68162.0,68161.0,0.42350804]
[1730660590868,0.000817,68162.0,68161.0,0.50270804]
[1730660591124,0.000817,68162.0,68161.0,0.63581022]
[1730660592081,1e-06,68168.0,68167.0,0.54090018]
[1730660592342,1e-06,68168.0,68167.0,0.84882381]
[1730660592588,1e-06,68168.0,68167.0,1.00175919]
[1730660593519,1e-06,68168.0,68167.0,0.89199617]
[1730660593741,1e-06,68168.0,68167.0,0.90599617]
[1730660594207,1e-06,68168.0,68167.0,0.89399617]
[1730660594429,1e-06,68168.0,68167.0,0.93658022]
[1730660594651,1e-06,68168.0,68167.0,0.95058022]
[1730660595103,1e-06,68168.0,68167.0,0.93658022]
[1730660595320,1e-06,68168.0,68167.0,0.86282381]
[1730660595581,1e-06,68168.0,68167.0,0.83982381]
[1730660596266,1e-06,68168.0,68167.0,0.85362211]
[1730660596525,1e-06,68168.0,68167.0,0.80965211]
[1730660596773,1e-06,68168.0,68167.0,0.81165211]
[1730660597020,1e-06,68168.0,68167.0,0.97353815]
[1730660597504,1e-06,68168.0,68167.0,0.77386958]
[1730660597735,1e-06,68168.0,68167.0,0.74586958]
[1730660598452,1e-06,68168.0,68167.0,0.75986958]
[1730660598665,1e-06,68168.0,68167.0,0.80170639]
[1730660598929,0.22070995,68186.0,68185.0,0.246659]
[1730660599380,0.001662,68188.0,68187.0,0.146655]
[1730660599577,0.001662,68188.0,68187.0,0.246655]
[1730660600974,0.001662,68188.0,68187.0,0.258655]
[1730660601674,0.001662,68188.0,68187.0,0.266655]
[1730660603267,0.001662,68188.0,68187.0,0.254655]
[1730660603505,0.001662,68188.0,68187.0,0.25758782]
[1730660603722,0.001662,68188.0,68187.0,0.40938486]
[1730660603959,0.001662,68188.0,68187.0,0.41745204]